fUST/lending_fUST_20250727
["ID","MTS","AMOUNT","RATE_DAILY","PERIOD"]
[375276778,1753613449645,-2898.81,0.00021095,2]
[375276779,1753613449656,-460.0,0.00021095,2]
[375276780,1753613449666,-460.0,0.00021095,2]
[375276781,1753613449676,-460.0,0.00021095,2]
[375276782,1753613449686,-460.0,0.00021095,2]
[375276783,1753613449696,-569.61,0.00021095,2]
[375276784,1753613449706,-460.0,0.00021095,2]
[375276785,1753613449716,-1397.36,0.00021095,2]
[375276786,1753613449726,-751.12,0.00021095,2]
[375276787,1753613449735,-460.0,0.00021095,2]
[375276788,1753613449744,-528.64,0.00021095,2]
[375276789,1753613449754,-893.59,0.00021095,2]
[375276790,1753613449763,-460.0,0.00021095,2]
[375276791,1753613449773,-2457.52,0.00021095,2]
[375276792,1753613449785,-501.02,0.00021095,2]
[375276793,1753613449794,-460.0,0.00021095,2]
[375276794,1753613449803,-818.84,0.00021095,2]
[375276795,1753613449813,-460.0,0.00021095,2]
[375276796,1753613449822,-552.49,0.00021095,2]
[375276797,1753613449831,-872.85,0.00021095,2]
[375276798,1753613449841,-1240.56,0.00021095,2]
[375276799,1753613449850,-470.34,0.00021095,2]
[375276800,1753613449859,-1190.51,0.00021095,2]
[375276801,1753613449869,-702.09,0.00021095,2]
[375276802,1753613449879,-460.0,0.00021095,2]
[375276803,1753613449889,-460.0,0.00021095,2]
[375276804,1753613449898,-1913.66,0.00021095,2]
[375276805,1753613449908,-460.0,0.00021095,2]
[375276806,1753613449917,-460.9,0.00021095,2]
[375276807,1753613449927,-460.0,0.00021095,2]
[375276808,1753613449936,-210.08,0.00021095,2]
[375276809,1753613449946,-1290.92,0.00021095,2]
[375276810,1753613449955,-3331.73,0.00021095,2]
[375276811,1753613449966,-460.0,0.00021095,2]
[375276812,1753613449975,-1781.4,0.00021095,2]
[375276813,1753613449985,-460.0,0.00021095,2]
[375276814,1753613449995,-598.51,0.00021095,2]
[375276815,1753613450005,-460.0,0.00021095,2]
[375276816,1753613450015,-1489.24,0.00021095,2]
[375276817,1753613450025,-1348.54,0.00021095,2]
[375276818,1753613450038,-533.33,0.00021095,2]
[375276819,1753613450048,-491.78,0.00021095,2]
[375276820,1753613450058,-1775.79,0.00021095,2]
[375276821,1753613450067,-151.0,0.00021095,2]
[375276822,1753613450077,-560.49,0.00021095,2]
[375276823,1753613450087,-151.0,0.00021095,2]
[375276824,1753613450097,-460.0,0.00021095,2]
[375276825,1753613450107,-460.0,0.00021095,2]
[375276826,1753613450117,-941.06,0.00021095,2]
[375276827,1753613450127,-460.0,0.00021095,2]
[375276828,1753613450138,-507.94,0.00021095,2]
[375276829,1753613450148,-460.0,0.00021095,2]
[375276830,1753613450158,-460.0,0.00021095,2]
[375276831,1753613450169,-460.0,0.00021095,2]
[375276832,1753613450178,-460.0,0.00021095,2]
[375276833,1753613450188,-4093.36480933,0.00021141,4]
[375276834,1753613450198,-826.458,0.00021145,2]
[375276835,1753613450208,-500.0,0.00021164,2]
[375276836,1753613450218,-252.91039381,0.00021201,2]
[375276837,1753613450228,-500.0,0.00021276,2]
[375276838,1753613450238,-154.02293776,0.00021276,2]
[375276839,1753613450247,-5000.0,0.00021313,2]
[375276840,1753613450258,-4093.36480933,0.00021348,5]
[375276841,1753613450267,-667.61,0.00021369,2]
[375276842,1753613450277,-460.0,0.00021369,2]
[375276843,1753613450289,-460.0,0.00021369,2]
[375276844,1753613450299,-460.0,0.00021369,2]
[375276845,1753613450308,-460.0,0.00021369,2]
[375276846,1753613450318,-2898.81,0.00021369,2]
[375276847,1753613450328,-460.0,0.00021369,2]
[375276848,1753613450339,-586.19948426,0.00021369,2]
[375276849,1753613450349,-460.0,0.00021369,2]
[375276850,1753613450358,-460.0,0.00021369,2]
[375276851,1753613450368,-517.58,0.00021369,2]
[375276852,1753613450379,-1397.36,0.00021369,2]
[375276853,1753613450388,-751.12,0.00021369,2]
[375276854,1753613450398,-460.0,0.00021369,2]
[375276855,1753613450408,-528.64,0.00021369,2]
[375276856,1753613450417,-893.59,0.00021369,2]
[375276857,1753613450427,-460.0,0.00021369,2]
[375276858,1753613450437,-2457.52,0.00021369,2]
[375276859,1753613450446,-501.02,0.00021369,2]
[375276860,1753613450457,-460.0,0.00021369,2]
[375276861,1753613450466,-818.84,0.00021369,2]
[375276862,1753613450476,-460.0,0.00021369,2]
[375276863,1753613450486,-552.49,0.00021369,2]
[375276864,1753613450496,-872.85,0.00021369,2]
[375276865,1753613450507,-1240.56,0.00021369,2]
[375276866,1753613450516,-470.34,0.00021369,2]
[375276867,1753613450526,-1190.51,0.00021369,2]
[375276868,1753613450538,-702.09,0.00021369,2]
[375276869,1753613450549,-460.0,0.00021369,2]
[375276870,1753613450559,-1913.66,0.00021369,2]
[375276871,1753613450570,-460.0,0.00021369,2]
[375276872,1753613450579,-460.0,0.00021369,2]
[375276873,1753613450589,-460.9,0.00021369,2]
[375276874,1753613450600,-460.0,0.00021369,2]
[375276875,1753613450621,-1290.92,0.00021369,2]
[375276876,1753613450638,-3331.73,0.00021369,2]
[375276877,1753613450650,-460.0,0.00021369,2]
[375276878,1753613450661,-1781.4,0.00021369,2]
[375276879,1753613450672,-460.0,0.00021369,2]
[375276880,1753613450683,-598.51,0.00021369,2]
[375276881,1753613450694,-460.0,0.00021369,2]
[375276882,1753613450704,-1489.24,0.00021369,2]
[375276883,1753613450715,-1348.54,0.00021369,2]
[375276884,1753613450726,-533.33,0.00021369,2]
[375276885,1753613450736,-491.78,0.00021369,2]
[375276886,1753613450747,-1775.79,0.00021369,2]
[375276887,1753613450757,-560.49,0.00021369,2]
[375276888,1753613450767,-460.0,0.00021369,2]
[375276889,1753613450777,-460.0,0.00021369,2]
[375276890,1753613450789,-941.06,0.00021369,2]
[375276891,1753613450799,-460.0,0.00021369,2]
[375276892,1753613450810,-507.94,0.00021369,2]
[375276893,1753613450821,-460.0,0.00021369,2]
[375276894,1753613450833,-460.0,0.00021369,2]
[375276895,1753613450844,-460.0,0.00021369,2]
[375276896,1753613450854,-2000.0,0.00021416,2]
[375276897,1753613450865,-2158.0,0.0002144,2]
[375276898,1753613450875,-969.0,0.0002144,2]
[375276899,1753613450886,-160.0,0.00021522,3]
[375276900,1753613450897,-360.0,0.00021546,2]
[375276901,1753613450907,-4093.36480933,0.00021555,5]
[375276902,1753613450918,-667.61,0.00021643,2]
[375276903,1753613450929,-358.49,0.00021643,2]
[375276904,1753613450940,-460.0,0.00021643,2]
[375276905,1753613451068,-460.0,0.00021643,2]
[375276906,1753613451078,-460.0,0.00021643,2]
[375276907,1753613451087,-2898.81,0.00021643,2]
[375276908,1753613451097,-460.0,0.00021643,2]
[375276909,1753613451106,-460.0,0.00021643,2]
[375276910,1753613451117,-460.0,0.00021643,2]
[375276911,1753613451126,-1397.36,0.00021643,2]
[375276912,1753613451136,-751.12,0.00021643,2]
[375276913,1753613451146,-460.0,0.00021643,2]
[375276914,1753613451156,-528.64,0.00021643,2]
[375276915,1753613451166,-893.59,0.00021643,2]
[375276916,1753613451176,-460.0,0.00021643,2]
[375276917,1753613451186,-2457.52,0.00021643,2]
[375276918,1753613451201,-501.02,0.00021643,2]
[375276919,1753613451211,-202.04,0.00021643,2]
[375276920,1753613451220,-818.84,0.00021643,2]
[375276921,1753613451230,-460.0,0.00021643,2]
[375276922,1753613451240,-552.49,0.00021643,2]
[375276923,1753613451249,-872.85,0.00021643,2]
[375276924,1753613451259,-1240.56,0.00021643,2]
[375276925,1753613451269,-470.34,0.00021643,2]
[375276926,1753613451278,-702.09,0.00021643,2]
[375276927,1753613451289,-1190.51,0.00021643,2]
[375276928,1753613451299,-460.0,0.00021643,2]
[375276929,1753613451308,-1913.66,0.00021643,2]
[375276930,1753613451318,-460.0,0.00021643,2]
[375276931,1753613451327,-460.0,0.00021643,2]
[375276932,1753613451336,-460.9,0.00021643,2]
[375276933,1753613451346,-460.0,0.00021643,2]
[375276934,1753613451356,-151.0,0.00021643,2]
[375276935,1753613451365,-151.0,0.00021643,2]
[375276936,1753613451374,-1290.92,0.00021643,2]
[375276937,1753613451384,-3331.73,0.00021643,2]
[375276938,1753613451393,-460.0,0.00021643,2]
[375276939,1753613451403,-1781.4,0.00021643,2]
[375276940,1753613451413,-460.0,0.00021643,2]
[375276941,1753613451422,-151.0,0.00021643,2]
[375276942,1753613451431,-598.51,0.00021643,2]
[375276943,1753613451440,-151.0,0.00021643,2]
[375276944,1753613451450,-460.0,0.00021643,2]
[375276945,1753613451459,-1489.24,0.00021643,2]
[375276946,1753613451468,-1348.54,0.00021643,2]
[375276947,1753613451477,-533.33,0.00021643,2]
[375276948,1753613451487,-151.0,0.00021643,2]
[375276949,1753613451496,-491.78,0.00021643,2]
[375276950,1753613451505,-1775.79,0.00021643,2]
[375276951,1753613451515,-560.49,0.00021643,2]
[375276952,1753613451524,-460.0,0.00021643,2]
[375276953,1753613451535,-460.0,0.00021643,2]
[375276954,1753613451545,-941.06,0.00021643,2]
[375276955,1753613451555,-460.0,0.00021643,2]
[375276956,1753613451564,-507.94,0.00021643,2]
[375276957,1753613451574,-151.0,0.00021643,2]
[375276958,1753613451583,-460.0,0.00021643,2]
[375276959,1753613451593,-460.0,0.00021643,2]
[375276960,1753613451602,-460.0,0.00021643,2]
[375276961,1753613451612,-4093.36480933,0.00021762,5]
[375276962,1753613451625,-151.0,0.000218,3]
[375276963,1753613451634,-252.91039381,0.00021817,2]
[375276964,1753613451644,-304.37602874,0.00021882,5]
[375276965,1753613451655,-667.61,0.00021917,2]
[375276966,1753613451664,-460.0,0.00021917,2]
[375276967,1753613451674,-460.0,0.00021917,2]
[375276968,1753613451683,-460.0,0.00021917,2]
[375276969,1753613451693,-2898.81,0.00021917,2]
[375276970,1753613451703,-460.0,0.00021917,2]
[375276971,1753613451714,-460.0,0.00021917,2]
[375276972,1753613451723,-460.0,0.00021917,2]
[375276973,1753613451733,-1397.36,0.00021917,2]
[375276974,1753613451743,-500.0,0.00021917,2]
[375276975,1753613451752,-500.0,0.00021917,2]
[375276976,1753613451762,-500.0,0.00021917,2]
[375276977,1753613451772,-500.0,0.00021917,2]
[375276978,1753613451784,-500.0,0.00021917,2]
[375276979,1753613451794,-500.0,0.00021917,2]
[375276980,1753613451804,-500.0,0.00021917,2]
[375276981,1753613451813,-359.30961583,0.00021917,2]
[375276982,1753613451823,-751.12,0.00021917,2]
[375276983,1753613451835,-460.0,0.00021917,2]
[375276984,1753613451844,-528.64,0.00021917,2]
[375276985,1753613451854,-893.59,0.00021917,2]
[375276986,1753613451863,-460.0,0.00021917,2]
[375276987,1753613451873,-2457.52,0.00021917,2]
[375276988,1753613451882,-501.02,0.00021917,2]
[375276989,1753613451891,-818.84,0.00021917,2]
[375276990,1753613451901,-460.0,0.00021917,2]
[375276991,1753613451910,-552.49,0.00021917,2]
[375276992,1753613451920,-872.85,0.00021917,2]
[375276993,1753613451930,-1240.56,0.00021917,2]
[375276994,1753613451939,-151.0,0.00021917,2]
[375276995,1753613451949,-470.34,0.00021917,2]
[375276996,1753613451958,-702.09,0.00021917,2]
[375276997,1753613451968,-1190.51,0.00021917,2]
[375276998,1753613451977,-155.78752042,0.00021917,2]
[375276999,1753613451986,-151.0,0.00021917,2]
[375277000,1753613451996,-151.0,0.00021917,2]
[375277001,1753613452005,-151.0,0.00021917,2]
[375277002,1753613452016,-1913.66,0.00021917,2]
[375277003,1753613452026,-460.0,0.00021917,2]
[375277004,1753613452037,-460.0,0.00021917,2]
[375277005,1753613452047,-460.9,0.00021917,2]
[375277006,1753613452056,-460.0,0.00021917,2]
[375277007,1753613452066,-1290.92,0.00021917,2]
[375277008,1753613452076,-3331.73,0.00021917,2]
[375277009,1753613452085,-460.0,0.00021917,2]
[375277010,1753613452095,-1781.4,0.00021917,2]
[375277011,1753613452105,-460.0,0.00021917,2]
[375277012,1753613452115,-598.51,0.00021917,2]
[375277013,1753613452124,-460.0,0.00021917,2]
[375277014,1753613452134,-1489.24,0.00021917,2]
[375277015,1753613452144,-1348.54,0.00021917,2]
[375277016,1753613452153,-533.33,0.00021917,2]
[375277017,1753613452163,-491.78,0.00021917,2]
[375277018,1753613452173,-1775.79,0.00021917,2]
[375277019,1753613452182,-560.49,0.00021917,2]
[375277020,1753613452192,-460.0,0.00021917,2]
[375277021,1753613452202,-460.0,0.00021917,2]
[375277022,1753613452213,-941.06,0.00021917,2]
[375277023,1753613452223,-460.0,0.00021917,2]
[375277024,1753613452232,-507.94,0.00021917,2]
[375277025,1753613452242,-460.0,0.00021917,2]
[375277026,1753613452250,-460.0,0.00021917,2]
[375277027,1753613452260,-155.064477,0.00021917,2]
[375277028,1753613452270,-460.0,0.00021917,2]
[375277029,1753613452281,-151.0,0.00021964,7]
[375277030,1753613452291,-2000.0,0.00021964,2]
[375277031,1753613452301,-4093.36480933,0.00021969,6]
[375277032,1753613452311,-477.07289566,0.00022,7]
[375277033,1753613452321,-798.7,0.00022,7]
[375277034,1753613452331,-2533.22,0.00022,7]
[375277035,1753613452340,-2735.17785181,0.00022,2]
[375277036,1753613452356,-658.49600282,0.00022,2]
[375277037,1753613452368,-1128.19935,0.00022,2]
[375277038,1753613452379,-860.231734,0.00022,2]
[375277039,1753613452395,-15295.67506137,0.00022,2]
[375277040,1753613452407,-460.0,0.00022094,2]
[375277041,1753613452416,-151.0,0.000221,5]
[375277042,1753613452426,-168.0,0.00022102,2]
[375277043,1753613452435,-4093.36480933,0.00022176,6]
[375277044,1753613452444,-151.0,0.00022176,7]
[375277045,1753613452454,-151.0,0.00022176,7]
[375277046,1753613452464,-151.0,0.00022176,7]
[375277047,1753613452474,-151.0,0.00022176,7]
[375277048,1753613452485,-667.61,0.00022191,2]
[375277049,1753613452495,-460.0,0.00022191,2]
[375277050,1753613452505,-460.0,0.00022191,2]
[375277051,1753613452514,-460.0,0.00022191,2]
[375277052,1753613452524,-2898.81,0.00022191,2]
[375277053,1753613452535,-460.0,0.00022191,2]
[375277054,1753613452544,-460.0,0.00022191,2]
[375277055,1753613452554,-460.0,0.00022191,2]
[375277056,1753613452564,-1397.36,0.00022191,2]
[375277057,1753613452574,-751.12,0.00022191,2]
[375277058,1753613452583,-237.33118655,0.00022191,2]
[375277059,1753613452594,-528.64,0.00022191,2]
[375277060,1753613452603,-893.59,0.00022191,2]
[375277061,1753613452613,-507.09,0.00022191,2]
[375277062,1753613452623,-2457.52,0.00022191,2]
[375277063,1753613452635,-501.02,0.00022191,2]
[375277064,1753613452644,-818.84,0.00022191,2]
[375277065,1753613452654,-460.0,0.00022191,2]
[375277066,1753613452663,-552.49,0.00022191,2]
[375277067,1753613452673,-872.85,0.00022191,2]
[375277068,1753613452683,-1240.56,0.00022191,2]
[375277069,1753613452692,-470.34,0.00022191,2]
[375277070,1753613452702,-702.09,0.00022191,2]
[375277071,1753613452711,-1190.51,0.00022191,2]
[375277072,1753613452720,-1913.66,0.00022191,2]
[375277073,1753613452730,-460.0,0.00022191,2]
[375277074,1753613452750,-460.0,0.00022191,2]
[375277075,1753613452760,-460.9,0.00022191,2]
[375277076,1753613452771,-460.0,0.00022191,2]
[375277077,1753613452783,-1290.92,0.00022191,2]
[375277078,1753613452792,-3331.73,0.00022191,2]
[375277079,1753613452804,-280.32,0.00022191,2]
[375277080,1753613452813,-1781.4,0.00022191,2]
[375277081,1753613452824,-460.0,0.00022191,2]
[375277082,1753613452834,-598.51,0.00022191,2]
[375277083,1753613452844,-460.0,0.00022191,2]
[375277084,1753613452854,-204.73175764,0.00022191,2]
[375277085,1753613452946,-590.16,0.00019339,3]
[375277086,1753613452955,-554.34,0.00020547,2]
[375277087,1753613452967,-47.68,0.00020547,2]
[375277088,1753613452978,-460.0,0.00020547,2]
[375277089,1753613452988,-602.02,0.00020821,2]
[375277090,1753613452997,-460.0,0.00020821,2]
[375277091,1753613453008,-151.0,0.00020821,2]
[375277092,1753613453017,-602.02,0.00021095,2]
[375277093,1753613453026,-460.0,0.00021095,2]
[375277094,1753613453038,-602.02,0.00021369,2]
[375277095,1753613453048,-602.02,0.00021643,2]
[375277096,1753613453058,-602.02,0.00021917,2]
[375277097,1753613453068,-1284.50824236,0.00022191,2]
[375277098,1753613453078,-1348.54,0.00022191,2]
[375277099,1753613453088,-533.33,0.00022191,2]
[375277100,1753613453098,-491.78,0.00022191,2]
[375277101,1753613453108,-1775.79,0.00022191,2]
[375277102,1753613453117,-560.49,0.00022191,2]
[375277103,1753613453127,-460.0,0.00022191,2]
[375277104,1753613453137,-460.0,0.00022191,2]
[375277105,1753613453147,-941.06,0.00022191,2]
[375277106,1753613453156,-460.0,0.00022191,2]
[375277107,1753613453167,-507.94,0.00022191,2]
[375277108,1753613453177,-460.0,0.00022191,2]
[375277109,1753613453186,-460.0,0.00022191,2]
[375277110,1753613453197,-460.0,0.00022191,2]
[375277111,1753613453207,-602.02,0.00022191,2]
[375277112,1753613453217,-532.81510458,0.00022214,2]
[375277113,1753613453227,-500.0,0.0002226,2]
[375277114,1753613453237,-4093.36480933,0.00022383,7]
[375277115,1753613453246,-500.0,0.0002244,2]
[375277116,1753613453256,-667.61,0.00022465,2]
[375277117,1753613453267,-460.0,0.00022465,2]
[375277118,1753613453277,-460.0,0.00022465,2]
[375277119,1753613453288,-460.0,0.00022465,2]
[375277120,1753613453298,-2898.81,0.00022465,2]
[375277121,1753613453307,-460.0,0.00022465,2]
[375277122,1753613453317,-460.0,0.00022465,2]
[375277123,1753613453328,-460.0,0.00022465,2]
[375277124,1753613453337,-1397.36,0.00022465,2]
[375277125,1753613453347,-751.12,0.00022465,2]
[375277126,1753613453356,-528.64,0.00022465,2]
[375277127,1753613453367,-893.59,0.00022465,2]
[375277128,1753613453376,-2457.52,0.00022465,2]
[375277129,1753613453386,-501.02,0.00022465,2]
[375277130,1753613453396,-818.84,0.00022465,2]
[375277131,1753613453406,-552.49,0.00022465,2]
[375277132,1753613453416,-872.85,0.00022465,2]
[375277133,1753613453426,-1240.56,0.00022465,2]
[375277134,1753613453436,-470.34,0.00022465,2]
[375277135,1753613453446,-702.09,0.00022465,2]
[375277136,1753613453456,-1190.51,0.00022465,2]
[375277137,1753613453466,-1913.66,0.00022465,2]
[375277138,1753613453476,-460.0,0.00022465,2]
[375277139,1753613453486,-460.0,0.00022465,2]
[375277140,1753613453496,-460.9,0.00022465,2]
[375277141,1753613453507,-286.86,0.00022465,2]
[375277142,1753613453635,-1290.92,0.00022465,2]
[375277143,1753613453645,-3331.73,0.00022465,2]
[375277144,1753613453655,-1781.4,0.00022465,2]
[375277145,1753613453666,-282.19849398,0.00022465,2]
[375277146,1753613453676,-598.51,0.00022465,2]
[375277147,1753613453685,-301.14159886,0.00022465,2]
[375277148,1753613453695,-1489.24,0.00022465,2]
[375277149,1753613453705,-1348.54,0.00022465,2]
[375277150,1753613453715,-533.33,0.00022465,2]
[375277151,1753613453725,-491.78,0.00022465,2]
[375277152,1753613453735,-560.49,0.00022465,2]
[375277153,1753613453744,-1775.79,0.00022465,2]
[375277154,1753613453754,-460.0,0.00022465,2]
[375277155,1753613453764,-460.0,0.00022465,2]
[375277156,1753613453774,-941.06,0.00022465,2]
[375277157,1753613453783,-460.0,0.00022465,2]
[375277158,1753613453793,-507.94,0.00022465,2]
[375277159,1753613453802,-460.0,0.00022465,2]
[375277160,1753613453812,-460.0,0.00022465,2]
[375277161,1753613453822,-460.0,0.00022465,2]
[375277162,1753613453831,-4093.36480933,0.0002259,7]
[375277163,1753613453841,-560.0,0.00022642,2]
[375277164,1753613453852,-587.0,0.00022662,2]
[375277165,1753613453863,-168.0,0.00022718,2]
[375277166,1753613453872,-667.61,0.00022739,2]
[375277167,1753613453883,-460.0,0.00022739,2]
[375277168,1753613453893,-460.0,0.00022739,2]
[375277169,1753613453902,-460.0,0.00022739,2]
[375277170,1753613453912,-2898.81,0.00022739,2]
[375277171,1753613453922,-460.0,0.00022739,2]
[375277172,1753613453931,-460.0,0.00022739,2]
[375277173,1753613453941,-460.0,0.00022739,2]
[375277174,1753613453950,-1397.36,0.00022739,2]
[375277175,1753613453961,-751.12,0.00022739,2]
[375277176,1753613453971,-528.64,0.00022739,2]
[375277177,1753613453981,-893.59,0.00022739,2]
[375277178,1753613453991,-2457.52,0.00022739,2]
[375277179,1753613454000,-501.02,0.00022739,2]
[375277180,1753613454010,-818.84,0.00022739,2]
[375277181,1753613454021,-552.49,0.00022739,2]
[375277182,1753613454030,-872.85,0.00022739,2]
[375277183,1753613454042,-1240.56,0.00022739,2]
[375277184,1753613454051,-470.34,0.00022739,2]
[375277185,1753613454061,-702.09,0.00022739,2]
[375277186,1753613454071,-1190.51,0.00022739,2]
[375277187,1753613454080,-1913.66,0.00022739,2]
[375277188,1753613454090,-460.0,0.00022739,2]
[375277189,1753613454100,-460.0,0.00022739,2]
[375277190,1753613454110,-460.9,0.00022739,2]
[375277191,1753613454121,-1290.92,0.00022739,2]
[375277192,1753613454132,-3331.73,0.00022739,2]
[375277193,1753613454143,-1781.4,0.00022739,2]
[375277194,1753613454153,-252.232266,0.00022739,7]
[375277195,1753613454162,-598.51,0.00022739,2]
[375277196,1753613454172,-1489.24,0.00022739,2]
[375277197,1753613454182,-1348.54,0.00022739,2]
[375277198,1753613454192,-533.33,0.00022739,2]
[375277199,1753613454202,-151.0,0.00022739,7]
[375277200,1753613454212,-491.78,0.00022739,2]
[375277201,1753613454222,-560.49,0.00022739,2]
[375277202,1753613454231,-1775.79,0.00022739,2]
[375277203,1753613454241,-460.0,0.00022739,2]
[375277204,1753613454251,-460.0,0.00022739,2]
[375277205,1753613454260,-941.06,0.00022739,2]
[375277206,1753613454270,-460.0,0.00022739,2]
[375277207,1753613454280,-507.94,0.00022739,2]
[375277208,1753613454295,-460.0,0.00022739,2]
[375277209,1753613454305,-460.0,0.00022739,2]
[375277210,1753613454314,-460.0,0.00022739,2]
[375277211,1753613454323,-12632.25855046,0.00022797,7]
[375277212,1753613454333,-4093.36480933,0.00022797,7]
[375277213,1753613454342,-833.74,0.000228,2]
[375277214,1753613454351,-168.0,0.00022911,2]
[375277215,1753613454362,-168.0,0.00022961,2]
[375277216,1753613454371,-160.0,0.00023,2]
[375277217,1753613454380,-526.50274803,0.00023,3]
[375277218,1753613454390,-160.0,0.00023,3]
[375277219,1753613454400,-840.75038169,0.00023,3]
[375277220,1753613454409,-4093.36480933,0.00023003,8]
[375277221,1753613454419,-667.61,0.00023013,2]
[375277222,1753613454428,-460.0,0.00023013,2]
[375277223,1753613454437,-460.0,0.00023013,2]
[375277224,1753613454447,-460.0,0.00023013,2]
[375277225,1753613454456,-2183.4834012,0.00023013,2]
[375277226,1753613454469,-715.3265988,0.00023013,2]
[375277227,1753613454479,-460.0,0.00023013,2]
[375277228,1753613454488,-460.0,0.00023013,2]
[375277229,1753613454498,-151.0,0.00023013,7]
[375277230,1753613454508,-460.0,0.00023013,2]
[375277231,1753613454519,-1397.36,0.00023013,2]
[375277232,1753613454529,-751.12,0.00023013,2]
[375277233,1753613454542,-528.64,0.00023013,2]
[375277234,1753613454552,-893.59,0.00023013,2]
[375277235,1753613454561,-501.02,0.00023013,2]
[375277236,1753613454571,-2457.52,0.00023013,2]
[375277237,1753613454580,-818.84,0.00023013,2]
[375277238,1753613454590,-552.49,0.00023013,2]
[375277239,1753613454599,-872.85,0.00023013,2]
[375277240,1753613454608,-1240.56,0.00023013,2]
[375277241,1753613454618,-470.34,0.00023013,2]
[375277242,1753613454632,-120.09691177,0.00023013,2]
[375277243,1753613455092,-419.6580987,0.00019177,2]
[375277244,1753613455103,-516.36,0.00019178,2]
[375277245,1753613455113,-516.36,0.00019452,2]
[375277246,1753613455123,-516.36,0.00019726,2]
[375277247,1753613455133,-516.36,0.0002,2]
[375277248,1753613455142,-516.36,0.00020273,2]
[375277249,1753613455151,-602.02,0.00022465,2]
[375277250,1753613455160,-602.02,0.00022739,2]
[375277251,1753613455170,-581.99308823,0.00023013,2]
[375277252,1753613455179,-1190.51,0.00023013,2]
[375277253,1753613455188,-1913.66,0.00023013,2]
[375277254,1753613455198,-460.0,0.00023013,2]
[375277255,1753613455207,-460.0,0.00023013,2]
[375277256,1753613455216,-460.9,0.00023013,2]
[375277257,1753613455226,-1290.92,0.00023013,2]
[375277258,1753613455235,-3331.73,0.00023013,2]
[375277259,1753613455244,-1781.4,0.00023013,2]
[375277260,1753613455253,-598.51,0.00023013,2]
[375277261,1753613455262,-1489.24,0.00023013,2]
[375277262,1753613455272,-1348.54,0.00023013,2]
[375277263,1753613455281,-533.33,0.00023013,2]
[375277264,1753613455292,-491.78,0.00023013,2]
[375277265,1753613455302,-560.49,0.00023013,2]
[375277266,1753613455311,-1775.79,0.00023013,2]
[375277267,1753613455320,-460.0,0.00023013,2]
[375277268,1753613455329,-460.0,0.00023013,2]
[375277269,1753613455339,-460.0,0.00023013,2]
[375277270,1753613455348,-941.06,0.00023013,2]
[375277271,1753613455358,-507.94,0.00023013,2]
[375277272,1753613455367,-460.0,0.00023013,2]
[375277273,1753613455377,-460.0,0.00023013,2]
[375277274,1753613455386,-460.0,0.00023013,2]
[375277275,1753613455395,-602.02,0.00023013,2]
[375277276,1753613455405,-542.19,0.0002307,7]
[375277277,1753613455414,-516.37,0.00023073,2]